Cogmind - Beta 15 @@@ ROGUE MODE // 2025.05.29 @ 14:40:08 Player: Rohain Result: Destroyed by GG-64R(R) with Subdweller Laser Performance ------------- Evolutions (0) 0 Regions Visited (3) 600 Robots Destroyed (15) 75 Value Destroyed (274) 274 Prototype IDs (1) 20 Alien Tech Used (0) 0 Bonus (0) 0 TOTAL SCORE: 969 Bonus ------- None Cogmind --------- Core Integrity 0/250 Matter 221/300 Energy 58/100 System Corruption 0% Temperature Cool (8) Movement Walking (120) Location -10/Subcaves Parts ------- > --- POWER (1) -------- (None) > --- PROPULSION (2) --- Aluminum Leg Aluminum Leg > --- UTILITY (2) ------ Small Storage Unit Signal Interpreter > --- WEAPON (2) ------- Improved Assault Rifle > --- INVENTORY (8) ---- Aluminum Leg Aluminum Leg Aluminum Leg Medium Storage Unit Peak State ------------ > --- POWER ------------ Light Nuclear Core > --- PROPULSION ------- Aluminum Leg Aluminum Leg > --- UTILITY ---------- Medium Storage Unit Targeting Computer > --- WEAPON ----------- Improved Assault Rifle Improved Assault Rifle > --- INVENTORY -------- Light Ion Engine Light Ion Engine Aluminum Leg Aluminum Leg Aluminum Leg Small Storage Unit EM Pulse Gun Assault Rifle Assault Rifle Assault Rifle [Rating: 14] Favorites ----------- Power Light Ion Engine Engine Light Ion Engine Power Core Light Nuclear Core Propulsion Aluminum Leg Leg Aluminum Leg Utility Small Storage Unit Storage Small Storage Unit Processor Signal Interpreter Weapon Improved Assault Rifle Energy Gun EM Pulse Gun Ballistic Gun Improved Assault Rifle Build | -11 -10 -10 -10 ------- Run | Yrd Mat Min Sub Slots Evolved . | . . . . Power . | . . . . Propulsion . | . . . . Utility . | . . . . Weapon . | . . . . Parts Attached 21 | 6 8 5 2 Power 4 | 1 1 2 . Engine 3 | 1 . 2 . Core 1 | . 1 . . Reactor . | . . . . Propulsion 7 | 2 1 3 1 Treads . | . . . . Leg 7 | 2 1 3 1 Wheel . | . . . . Hover . | . . . . Flight . | . . . . Utility 4 | 1 3 . . Device . | . . . . Storage 2 | 1 1 . . Processor 2 | . 2 . . Hackware . | . . . . Protection . | . . . . Artifact . | . . . . Weapon 6 | 2 3 . 1 Energy Gun 1 | . 1 . . Energy Cannon . | . . . . Ballistic Gun 5 | 2 2 . 1 Ballistic Cannon . | . . . . Launcher . | . . . . Special Weapon . | . . . . Impact Weapon . | . . . . Slashing Weapon . | . . . . Piercing Weapon . | . . . . Special Melee Weapon . | . . . . Unidentified Prototypes 1 | . 1 . . Parts Lost 7 | . . 1 6 Power 2 | . . 1 1 Propulsion 2 | . . . 2 Utility . | . . . . Weapon 3 | . . . 3 Highest Loss Streak 6 | . . 1 6 To Critical Strikes . | . . . . Average Backups 6 | 2 6 7 7 Power . | . 1 . . Propulsion 3 | . 1 4 5 Utility . | . . 1 1 Weapon 2 | 1 2 2 1 Tool/Special . | . . . . Unused Backups 2 | . . 1 1 Power . | . . . . Propulsion 1 | . . . 1 Utility . | . . . . Weapon 1 | . . 1 . Tool/Special . | . . . . Average Slot Usage (%) 97 | . 96 100 94 Engine 9 | . 6 11 12 Core 4 | . 7 2 . Leg 27 | . 28 28 26 Storage 14 | . 14 14 14 Processor 12 | . 11 14 14 Ballistic Gun 26 | . 25 28 25 Peak Build Rating 14 | 6 14 14 12 Average Rating 10 | 3 9 12 11 On Entrance 8 | . 6 14 12 Naked Turns . | . . . . Heaviest Build 21 | 12 21 16 14 Greatest Support 20 | 20 20 20 20 Greatest Overweight (x) 1 | . 1 . . Average Overweight (x) . | . . . . Largest Inventory Capacity 10 | 8 10 10 8 Average Capacity 8 | 7 8 8 8 Most Carried 10 | 4 10 10 8 Average Carried 6 | 2 6 7 7 Final Capacity 10 | 8 10 8 8 Final Carried 10 | 2 10 8 4 Class Distribution -------------------- 100% | Mutant Dominant Class ---------------- Mutant | -10/Materials Mutant | -10/Mines Mutant | -10/Subcaves Resources | -11 -10 -10 -10 ----------- Run | Yrd Mat Min Sub Matter Collected 628 | 215 239 174 . Remotely . | . . . . Salvage Created 446 | . 261 185 . Parts 31 | . 16 15 . Haulers Intercepted . | . . . . Recyclers Shooed 1 | . 1 . . Parts Field Recycled . | . . . . Retrieved Matter . | . . . . Parts Self-Destructed 2 | . . . 2 Prevented . | . . . . Kills | -11 -10 -10 -10 ------- Run | Yrd Mat Min Sub Combat Hostiles Destroyed 13 | . 5 8 . Guns 13 | . 5 8 . Classes Destroyed 4 | . 4 . . Recycler 1 | . 1 . . Watcher 1 | . 1 . . Swarmer 9 | . 3 6 . Grunt 4 | . 2 2 . Best Kill Streak 5 | . 3 5 . Combat Bots Only 5 | . 3 5 . Max Kills in Single Turn 1 | . 1 1 . Gunslinging . | . . . . Exploded . | . . . . Melee . | . . . . Uniques/NPCs Destroyed . | . . . . Combat | -11 -10 -10 -10 -------- Run | Yrd Mat Min Sub Hostile Shots Fired 129 | . 36 47 46 Missed 39 | . 7 19 13 Hits 90 | . 29 28 33 Projectile 90 | . 29 28 33 Critical Strikes 2 | . . 1 1 Damage Taken 1207 | . 259 267 681 Core 266 | . 50 54 162 Absorbed by Shields . | . . . . Core Remaining (%) 100 | 100 . . . Volleys Fired 55 | . 20 20 15 Largest 2 | . 2 2 2 Hottest 63 | . 60 46 63 Shots Fired 106 | . 40 40 26 Gun 106 | . 40 40 26 Cannon . | . . . . Launcher . | . . . . Special . | . . . . Kinetic 99 | . 38 40 21 Thermal . | . . . . Explosive . | . . . . Electromagnetic 7 | . 2 . 5 Robot Hit Streak 16 | . 7 15 16 Robot Miss Streak 5 | . 2 5 1 Penetration Max . | . . . . Secondary Targets 3 | . . 3 . Max Gunslinging Chain 1 | . . 1 . Shots Hit Robots 73 | . 22 26 25 Core Hits 21 | . 11 10 . Critical Kills . | . . . . Critical Parts Destroyed . | . . . . Critical Strikes . | . . . . Melee Attacks . | . . . . Impact . | . . . . Slashing . | . . . . Piercing . | . . . . Sneak Attacks . | . . . . Combat Hostiles . | . . . . Follow-up Attacks . | . . . . Damage Inflicted 722 | . 325 397 . Guns 722 | . 325 397 . Cannons . | . . . . Explosions . | . . . . Melee . | . . . . Ramming . | . . . . Kinetic 702 | . 305 397 . Thermal . | . . . . Explosive . | . . . . Electromagnetic 20 | . 20 . . Impact . | . . . . Slashing . | . . . . Piercing . | . . . . Highest Corruption . | . . . . Average Corruption . | . . . . Corruption Purged . | . . . . Corruption Blocked . | . . . . Overload Shots . | . . . . Overflow Damage . | . . . . Projectiles . | . . . . Explosions . | . . . . Melee . | . . . . Knockbacks . | . . . . Impact . | . . . . Kinetic . | . . . . Secondary . | . . . . Self-Inflicted Damage . | . . . . Shots . | . . . . Rammed . | . . . . Targets Rammed . | . . . . Kicked . | . . . . Crushed . | . . . . Highest Temperature 18 | . 6 18 . Average Temperature 6 | . 3 8 . Received Heat Transfer 324 | . 48 78 198 Siege Activations . | . . . . Martial Activations . | . . . . Shielding Activations . | . . . . Robots Disrupted . | . . . . Combat Hostiles . | . . . . Robots Corrupted . | . . . . Combat Hostiles . | . . . . Parts Fried . | . . . . Impact Corruptions . | . . . . Robots Melted . | . . . . Combat Hostiles . | . . . . Parts Melted . | . . . . Heat Transferred . | . . . . Parts Sabotaged . | . . . . Parts Stolen . | . . . . Parts Stripped . | . . . . Power Chain Reactions . | . . . . Alert | -11 -10 -10 -10 ------- Run | Yrd Mat Min Sub Maximum Alert Level . | . . . . Low Security (%) 100 | 100 100 100 . Level 1 . | . . . . Level 2 . | . . . . Level 3 . | . . . . Level 4 . | . . . . Level 5 . | . . . . High Security . | . . . . Max Security . | . . . . Peak Influence 138 | . 63 138 . Initial 8 | . . 8 . Average 28 | . 14 45 . Influence Increases 373 | . 183 190 . Destroy 0b10 Robot/C 260 | . 100 160 . Destroy 0b10 Robot/NC 10 | . 10 . . Destroy Leader 52 | . 22 30 . Successful Hack 19 | . 19 . . Destroy Structure 2 | . 2 . . Lose Combat Pursuer 30 | . 30 . . Influence Decreases 373 | . 160 213 . Entered New Map 15 | . . 15 . Time Decay 348 | . 160 188 . Lost Part 10 | . . 10 . Squads Dispatched . | . . . . Investigation . | . . . . Extermination . | . . . . Reinforcement . | . . . . Assault . | . . . . Garrison . | . . . . Intercept . | . . . . Searches Triggered . | . . . . Construction Impeded . | . . . . Haulers Reinforced . | . . . . Active Scanning Responses . | . . . . Cargo Convoy Interrupts . | . . . . Stealth | -11 -10 -10 -10 --------- Run | Yrd Mat Min Sub Distress Signals . | . . . . Communications Jammed . | . . . . Distress Signals . | . . . . Times Spotted 17 | . 8 7 2 Peak Tracking Total 3 | . 3 3 2 Tactical Retreats 1 | . 1 . . Traps | -11 -10 -10 -10 ------- Run | Yrd Mat Min Sub Traps Triggered . | . . . . Indirectly . | . . . . Trap Hack Attempts . | . . . . Triggered . | . . . . Disarmed . | . . . . Reprogrammed . | . . . . Reused . | . . . . Traps Extracted . | . . . . Installed . | . . . . Triggered . | . . . . Machines | -11 -10 -10 -10 ---------- Run | Yrd Mat Min Sub Machines Disabled . | . . . . Max in Single Turn . | . . . . Machines Repaired . | . . . . Machines Dismantled . | . . . . Machines Sabotaged . | . . . . Overloaded Fab Kills . | . . . . Hacking | -11 -10 -10 -10 --------- Run | Yrd Mat Min Sub Machines Accessed 3 | . 3 . . Terminals 3 | . 3 . . Fabricators . | . . . . Repair Stations . | . . . . Recycling Units . | . . . . Scanalyzers . | . . . . Garrison Access . | . . . . Total Hacks 10 | . 10 . . Successful 6 | . 6 . . Failed 4 | . 4 . . Catastrophic . | . . . . Database Lockouts . | . . . . Manual 9 | . 9 . . Terminals 10 | . 10 . . Fabricators . | . . . . Repair Stations . | . . . . Recycling Units . | . . . . Scanalyzers . | . . . . Garrison Access . | . . . . Terminal Hacks 2 | . 2 . . Robot Analysis 2 | . 2 . . Fabricator Hacks . | . . . . Repair Station Hacks . | . . . . Recycling Unit Hacks . | . . . . Scanalyzer . | . . . . Garrison Access Hacks . | . . . . Unauthorized Hacks 4 | . 4 . . Terminals 4 | . 4 . . Botnet 3 | . 3 . . Operators 1 | . 1 . . Fabricators . | . . . . Repair Stations . | . . . . Recycling Units . | . . . . Scanalyzers . | . . . . Garrison Access . | . . . . Data Cores Recovered . | . . . . Used . | . . . . Hacking Detections 2 | . 2 . . Full Trace Events . | . . . . Feedback Events . | . . . . Feedback Blocked . | . . . . Robot Schematics Acquired . | . . . . Robots Built . | . . . . Authchips . | . . . . Time . | . . . . Total Robot Build Rating . | . . . . Part Schematics Acquired . | . . . . Parts Built . | . . . . Authchips . | . . . . Time . | . . . . Total Part Build Rating . | . . . . Parts Repaired . | . . . . Time . | . . . . Parts Recycled . | . . . . Recycled Matter . | . . . . Retrieved Matter . | . . . . Retrieved Components . | . . . . Parts Scanalyzed . | . . . . Part Schematics Acquired . | . . . . Parts Damaged . | . . . . Bothacking | -11 -10 -10 -10 ------------ Run | Yrd Mat Min Sub Used RIF Installer . | . . . . Robots Hacked . | . . . . Non-combat . | . . . . Combat . | . . . . Robot Hacks Applied . | . . . . Relay Couplers Released . | . . . . Fabnet Peak Effective % . | . . . . Robots Rewired . | . . . . Allies Hacked . | . . . . Hacks Repelled . | . . . . Allies | -11 -10 -10 -10 -------- Run | Yrd Mat Min Sub Total Allies . | . . . . Largest Group . | . . . . Highest-Rated Group . | . . . . Highest-Rated Ally . | . . . . Total Orders . | . . . . Ally Attacks . | . . . . Total Damage . | . . . . Kills . | . . . . Allies Corrupted . | . . . . Allies Melted . | . . . . Intel | -11 -10 -10 -10 ------- Run | Yrd Mat Min Sub Active Infowar (turns) . | . . . . Robot Analysis Total 2 | . 2 . . Derelict Logs Recovered 2 | . . 1 1 Drone Launches . | . . . . Drone Recoveries . | . . . . Exploration | -11 -10 -10 -10 ------------- Run | Yrd Mat Min Sub Turns Passed 1361 | 63 537 573 188 Spaces Moved 889 | 45 307 419 118 Core 3 | 3 . . . Treads . | . . . . Legs 886 | 42 307 419 118 Wheels . | . . . . Hover . | . . . . Flight . | . . . . Fastest Speed 50 | 50 120 120 120 Average Speed 124 | 115 135 120 120 Slowest Speed 190 | 120 190 120 120 Overloaded Moves . | . . . . Propulsion Burnouts . | . . . . Robots Hopped . | . . . . Potential Cave-ins . | . . . . Cave-ins Triggered . | . . . . Exploration Rate (%) 36 | 3 46 86 11 Regions Visited 3 Branch Regions 2 Pre-discovered Areas 2 | . . 1 1 Known Exits Taken 2 | . 1 1 . Unknown Exits Taken 1 | 1 . . . Scrap Searched 2 | . . 2 . Spaces Dug . | . . . . Terrain Destroyed . | . . . . Melee . | . . . . Projectile . | . . . . AOE . | . . . . Terrain Rammed . | . . . . Walls Destroyed . | . . . . Machines Disabled . | . . . . Actions | -11 -10 -10 -10 --------- Run | Yrd Mat Min Sub Total 1033 | 54 389 450 140 Wait 48 | . 45 . 3 Move 886 | 44 306 418 118 Hop . | . . . . Pick Up 10 | 4 5 1 . Fast Attach 8 | 4 4 . . Attach 8 | 2 1 1 4 Detach 2 | . 2 . . Swap 8 | . 3 5 . Drop 8 | . 3 5 . Fire 55 | . 20 20 15 Melee . | . . . . Ram . | . . . . Kick . | . . . . Crush . | . . . . Escape Stasis . | . . . . Rewire . | . . . . Trap . | . . . . Miscellaneous . | . . . . Route ------- -11/Scrapyard -10/Materials -10/Mines (discovered 2 exits: *Mat / *Sub) -10/Subcaves History --------- Turn | Location | Event 3 | -11/Scrapyard | Discovered new exit (range 16) 64 | -11/Scrapyard | Entered Materials 330 | -10/Materials | Build established: Mutant 498 | -10/Materials | Discovered new exit (range 9) 599 | -10/Materials | Identified exit to Mines 601 | -10/Materials | Entered Mines 803 | -10/Mines | Learned location of Storage (-7) 853 | -10/Mines | Learned Materials interactive machine intel 1114 | -10/Mines | Discovered new exit (range 9) 1121 | -10/Mines | Identified exit to Materials 1150 | -10/Mines | Discovered new exit (range 11) 1172 | -10/Mines | Identified exit to Subcaves 1174 | -10/Mines | Entered Subcaves 1175 | -10/Subcaves | Approached by a straggling Scientist 1203 | -10/Subcaves | Learned location of Zion (-7) 1300 | -10/Subcaves | Shifting Twisted Machinery released Sub. Beam Cannon 1306 | -10/Subcaves | Shifting Twisted Machinery released Mak. Light Armor Plating 1331 | -10/Subcaves | Core integrity fell below 50% 1358 | -10/Subcaves | Core integrity fell below 20% 1362 | -10/Subcaves | Destroyed by GG-64R(R) with Subdweller Laser Last Messages --------------- 01178_ 9X-SF6(c): "Hey, let me tag along and I can get us both out of this nasty situation. At least I think I can... The group I got separated from was talking about a shortcut back to the UFD." 01203_ Acquired derelict log, extracted data. World map updated: -7/Zion. 9X-SF6(c): "I think it's somewhere west of here" Sub. Beam Cannon falls loose from the Twisted Machinery. Mak. Light Armor Plating falls loose from the Twisted Machinery. 9X-SF6(c): "I think it's somewhere west of here" 01327_ Imp. Assault Rifle destroyed. 01339_ Aluminum Leg destroyed. 01340_ Lgt. Ion Engine destroyed. 01349_ 9X-SF6(c) destroyed. 01352_ Aluminum Leg destroyed. 01358_ EM Pulse Gun destroyed. Map ----- +----------------------------------------------------+ | ?????????????????????????????????????????????????? | | ?????????????????????????????????????????????????? | | ?????????????????????????????????????????????????? | | ?????????????????????????????????????????????????? | | ?????????????????????????????????????????????????? | | ?????????????????????????????????????????????????? | | ?????????????????????????????????????????????????? | | ?????????????????????????????????????????????????? | | ?????????????????????????????????????????????????? | | ?????????????????????????????????????????????????? | | ?????????????????????????????????????????????????? | | ?????????????????????????????????????????????????? | | ?????????????????????????????????????????????????? | | ?????????????????????????????????????????????????? | | ?????????????????????????????????????????????????? | | ?????????????????????????????????????????????????? | | ?????????????????????????????????????????????????? | | ?????????????????????????????????????????????????? | | ????????????????????????????????????###??????###?? | | ???????????????????????????????????## ####### ##? | | ????????????????????????????????#### # | | ????????????????????????????????# | | ????????????????# ?????????????# | | ????????????????# #????????### "" #??? | | ????????????????? """ ####### """ ##??? | | ???????????????????""""" @]%= """"" ####??## | | ???????????????????#"""""RR=!"""""" ##??## | | ???????????????????#####"""""""##" #### | | ???????????????????????# " """"##"""""" ## | | ???????????????????????# """"" """"""""""" | | ?????????????????????? !"" """"" """ | | ????????????????????? "" """"" ## # # | | ????????????????????? #""" "??"" " ##### ## | | ??????????????????????## " ""?? """ #???## #? | | ?????????????????????????? "?? " #????# ## | | ???????????????????????????""??? ##????# # | | ???????????????????????????????? ##??????# | | ?????????????????????????????????????????????## | | ??????????????????????????????????????????????# | | ??????????????????????????????????????????????#### | | ?????????????????????????????????????????????????? | | ?????????????????????????????????????????????????? | | ?????????????????????????????????????????????????? | | ?????????????????????????????????????????????????? | | ?????????????????????????????????????????????????? | | ?????????????????????????????????????????????????? | | ?????????????????????????????????????????????????? | | ?????????????????????????????????????????????????? | | ?????????????????????????????????????????????????? | | ?????????????????????????????????????????????????? | +----------------------------------------------------+ Best States ------------- Heat Dissipation 25 Energy Generation 14 Energy Capacity 160 Matter Stores 300 Matter Capacity 300 Sight Range 16 Terrain Scan Density 10 Evasion (%) 55 Targeting Accuracy 5 Item Schematics ----------------- None Robot Schematics ------------------ None Fabricated ------------ Nothing Repaired ---------- Nothing Alien Tech Used ----------------- None Achievements -------------- None Challenges ------------ None Game ------ Seed TrackerTiamatCloak Manual? 0 Play Time 00:08:06 Cumulative 72.0 hours Start 2025.05.29 @ 14:33:07 End 2025.05.29 @ 14:40:08 Sessions 1 Manual Loads 0 Difficulty Rogue Special Mode None Game No. 125 Rogue 109 Adventurer 16 Explorer 0 Win Type - Total 1 Types 1/0/0/0/0/0/0/0/0/0 Lore% 25 Gallery% 48 Achievement% 48 Wizard Run 0 Options --------- Layout 2 ASCII 0 Keyboard 0 Movement Mouse Keybinds 0 Fullscreen 1 Font 24/Smallcaps Map View 50x44 Zoom Use 0% Tactical HUD 1 Map Filters NONE Filters NONE Steam 1 RUN: 536c5f14-e969-4f6f-b55f-efc420922df4